lending/lending_fUSD_20260222
["ID","MTS","AMOUNT","RATE_DAILY","PERIOD"]
[406360718,1771797040467,-9881.93,0.00043,120]
[406360719,1771797040476,-5000.0,0.00043083,11]
[406360720,1771797040485,-282.59,0.00043452,120]
[406360721,1771797040496,-168.0,0.00043515,2]
[406360722,1771797040506,-90310.0,0.0004365,60]
[406360723,1771797040515,-200.0,0.0004366,120]
[406360724,1771797040524,-303.81833795,0.000438,60]
[406360725,1771797040534,-500.0,0.000438,60]
[406360726,1771797040544,-2000.0,0.000438,2]
[406360728,1771797040554,-500.0,0.00043999,30]
[406360730,1771797040563,-150.0,0.00044,57]
[406360731,1771797040573,-40078.15933942,0.00044,10]
[406360732,1771797040582,-173.78509278,0.00044,10]
[406360733,1771797040592,-6075.6219183,0.00044,3]
[406360734,1771797040601,-1707.82172191,0.00044081,2]
[406360735,1771797040611,-150.0,0.000442,30]
[406360736,1771797040621,-13353.33484737,0.000442,7]
[406360737,1771797040631,-150.0,0.00044281,120]
[406360738,1771797040640,-2086.81,0.000443,14]
[406360739,1771797040649,-550.41402608,0.00044383,120]
[406360740,1771797040659,-500.0,0.00044383,120]
[406360741,1771797040668,-500.0,0.00044383,120]
[406360742,1771797040678,-500.0,0.00044383,120]
[406360743,1771797040687,-500.0,0.00044383,120]
[406360744,1771797040697,-500.0,0.00044383,120]
[406360745,1771797040706,-500.0,0.00044383,120]
[406360746,1771797040715,-500.0,0.00044383,120]
[406360747,1771797040724,-500.0,0.00044383,120]
[406360748,1771797040733,-500.0,0.00044383,120]
[406360749,1771797040742,-500.0,0.00044383,120]
[406360750,1771797040751,-399.0374907,0.00044383,120]
[406360751,1771797040761,-500.0,0.00044383,120]
[406360752,1771797040770,-500.0,0.00044383,120]
[406360753,1771797040779,-500.000001,0.00044383,120]
[406360754,1771797040788,-243.5358712,0.00044383,120]
[406360755,1771797040798,-150.0,0.000444,120]
[406360756,1771797040807,-150.0,0.000444,120]
[406360757,1771797040817,-150.0,0.000444,120]
[406360758,1771797040826,-150.0,0.000444,120]
[406360759,1771797040835,-7195.93234468,0.00044459,10]
[406360760,1771797040845,-700.0,0.000446,16]
[406360761,1771797040854,-400.0,0.000446,16]
[406360762,1771797040863,-300.0,0.000446,16]
[406360763,1771797040872,-700.0,0.000447,16]
[406360764,1771797040881,-400.0,0.000447,16]
[406360765,1771797040890,-300.0,0.000447,16]
[406360766,1771797040899,-243.63605972,0.00044773,7]
[406360767,1771797040908,-1300.0,0.000448,16]
[406360768,1771797040917,-800.0,0.000448,16]
[406360769,1771797040927,-700.0,0.000448,16]
[406360770,1771797040936,-243.63605972,0.00044886,7]
[406360771,1771797040945,-500.0,0.00044896,60]
[406360772,1771797040954,-161.29,0.00044908,14]
[406360773,1771797040963,-243.63605972,0.00044988,7]
[406360774,1771797040973,-243.63605972,0.00044988,7]
[406360775,1771797040982,-44600.0,0.00044999,10]
[406360776,1771797040991,-500.0,0.00044999,30]
[406360777,1771797041001,-409.15172622,0.00044999,30]
[406360778,1771797041011,-86561.45245463,0.00045,120]
[406360779,1771797041020,-160101.8,0.00045,120]
[406360780,1771797041029,-342209.44466615,0.00045,10]
[406360781,1771797041038,-90310.0,0.00045,60]
[406360782,1771797041047,-2013.46,0.00045,2]
[406360783,1771797041056,-151.0,0.00045,7]
[406360784,1771797041066,-6854.40905278,0.00045,15]
[406360785,1771797041075,-1044.11858127,0.00045,30]
[406360786,1771797041084,-2086.81,0.00045,2]
[406360787,1771797041093,-2013.46,0.00045065,2]
[406360788,1771797041103,-168.0,0.00045082,2]
[406360789,1771797041112,-161.29,0.00045116,14]
[406360790,1771797041123,-2013.46,0.0004513,2]
[406360791,1771797041132,-2013.46,0.00045195,2]
[406360792,1771797041141,-276.43,0.00045245,120]
[406360793,1771797041151,-2013.46,0.00045259,2]
[406360794,1771797041160,-209.604307,0.0004526,120]
[406360795,1771797041169,-944.73,0.00045292,2]
[406360796,1771797041177,-1550.34520373,0.000453,120]
[406360797,1771797041187,-168.0,0.00045307,2]
[406360798,1771797041196,-2013.46,0.00045324,2]
[406360799,1771797041205,-151.73570236,0.00045328,19]
[406360800,1771797041214,-587.70007513,0.00045328,2]
[406360801,1771797041224,-1256.9615698,0.00045328,2]
[406360802,1771797041233,-506.2571619,0.00045343,120]
[406360803,1771797041242,-500.0,0.00045343,120]
[406360804,1771797041252,-500.0,0.00045343,120]
[406360805,1771797041261,-500.0,0.00045343,120]
[406360806,1771797041270,-500.0,0.00045343,120]
[406360807,1771797041279,-500.0,0.00045343,120]
[406360808,1771797041288,-500.0,0.00045343,120]
[406360809,1771797041297,-500.0,0.00045343,120]
[406360810,1771797041306,-500.0,0.00045343,120]
[406360811,1771797041315,-500.0,0.00045343,120]
[406360812,1771797041324,-500.0,0.00045343,120]
[406360813,1771797041333,-500.0,0.00045343,120]
[406360814,1771797041343,-500.0,0.00045343,120]
[406360815,1771797041352,-500.0,0.00045343,120]
[406360816,1771797041361,-492.95571742,0.00045343,120]
[406360817,1771797041371,-500.0,0.00045349,64]
[406360818,1771797041380,-500.0,0.00045349,66]
[406360819,1771797041389,-500.0,0.00045349,67]
[406360820,1771797041399,-500.0,0.00045349,68]
[406360821,1771797041408,-500.0,0.00045349,64]
[406360822,1771797041417,-442.78881334,0.00045349,69]
[406360823,1771797041427,-500.0,0.00045349,66]
[406360824,1771797041437,-500.0,0.00045349,67]
[406360825,1771797041446,-500.0,0.00045349,68]
[406360826,1771797041455,-500.0,0.00045349,69]
[406360827,1771797041464,-625.98347956,0.00045349,64]
[406360828,1771797041474,-291.52616731,0.00045349,64]
[406360829,1771797041483,-557.5788265,0.00045349,64]
[406360830,1771797041492,-578.20924308,0.00045349,66]
[406360831,1771797041506,-599.60298507,0.00045349,67]
[406360832,1771797041515,-621.78829552,0.00045349,68]
[406360833,1771797041525,-644.79446246,0.00045349,69]
[406360834,1771797041537,-500.0,0.00045349,64]
[406360835,1771797041547,-668.65185757,0.00045349,70]
[406360836,1771797041557,-151.0,0.00045349,64]
[406360837,1771797041566,-500.0,0.00045349,66]
[406360838,1771797041578,-151.0,0.00045349,66]
[406360839,1771797041588,-500.0,0.00045349,67]
[406360840,1771797041598,-151.0,0.00045349,67]
[406360841,1771797041608,-500.0,0.00045349,68]
[406360842,1771797041617,-151.0,0.00045349,68]
[406360843,1771797041627,-500.0,0.00045349,69]
[406360844,1771797041636,-151.0,0.00045349,69]
[406360845,1771797041647,-500.0,0.00045349,70]
[406360846,1771797041656,-151.0,0.00045349,70]
[406360847,1771797041667,-800.0,0.0004535,17]
[406360848,1771797041677,-800.0,0.0004535,17]
[406360849,1771797041686,-800.0,0.0004535,17]
[406360850,1771797041696,-800.0,0.0004535,17]
[406360851,1771797041706,-800.0,0.0004535,17]
[406360852,1771797041716,-800.0,0.0004535,17]
[406360853,1771797041726,-800.0,0.0004535,17]
[406360854,1771797041736,-800.0,0.0004535,17]
[406360855,1771797041746,-800.0,0.0004535,33]
[406360856,1771797041756,-187.97597175,0.0004535,30]
[406360857,1771797041765,-500.0,0.0004535,30]
[406360858,1771797041775,-500.0,0.0004535,30]
[406360859,1771797041785,-559.19188,0.0004535,30]
[406360860,1771797041794,-500.0,0.0004535,30]
[406360861,1771797041804,-537.6845,0.0004535,30]
[406360862,1771797041814,-500.0,0.0004535,30]
[406360863,1771797041824,-151.0,0.0004535,30]
[406360864,1771797041833,-2013.46,0.00045389,2]
[406360865,1771797041843,-150.0,0.000454,89]
[406360866,1771797041853,-425.51450765,0.000454,2]
[406360867,1771797041862,-200.03451288,0.00045418,7]
[406360868,1771797041872,-151.0,0.00045425,120]
[406360869,1771797041882,-163647.27086987,0.00045428,57]
[406360870,1771797041891,-10179.41725522,0.00045428,2]
[406360871,1771797041901,-7125.59207866,0.00045428,4]
[406360872,1771797041911,-2840253.6370855,0.00045428,10]
[406360873,1771797042031,-644.20590704,0.00028144,2]
[406360874,1771797042047,-945.96377554,0.00028144,2]
[406360886,1771797042947,-863.83031742,0.00028144,2]
[406360887,1771797042958,-2454.0,0.00031144,2]
[406360888,1771797042967,-2454.0,0.00034144,2]
[406360889,1771797042977,-2068.827,0.00037144,2]
[406360890,1771797042987,-639.57,0.00045,120]
[406360891,1771797042997,-4189.28189697,0.00045428,10]
[406360892,1771797043173,-12154.15253222,0.00045428,10]
[406360893,1771797043185,-2400.0,0.00045428,10]
[406360909,1771797045834,-779.53158431,0.00044519,50]
[406360910,1771797045844,-745.0,0.00045113,30]
[406360911,1771797045854,-15978.93833388,0.00045428,10]
[406360912,1771797046056,-180816.82932789,0.00045428,10]
[406360938,1771798237986,-1343.471,0.00016232,2]
[406360939,1771798237998,-208.514,0.00016232,2]
[406360940,1771798238008,-250.0,0.00016298,2]
[406360941,1771798238017,-300.0,0.00016552,2]
[406360942,1771798238026,-180.0,0.00016552,2]
[406360943,1771798238036,-300.0,0.00016552,2]
[406360944,1771798238045,-720.0,0.00016552,2]
[406360945,1771798238055,-18529.37002155,0.00016553,2]
[406360946,1771798238065,-939.53045993,0.00016563,2]
[406360947,1771798238075,-1826.84,0.00016563,2]
[406360948,1771798238085,-1298.98566139,0.000166,2]
[406360949,1771798238095,-2447.97132282,0.000166,2]
[406360950,1771798238104,-3367.15985191,0.000166,2]
[406360951,1771798238114,-6354.52257154,0.000166,2]
[406360952,1771798238123,-500.0,0.00016662,2]
[406360953,1771798238133,-500.0,0.00016662,2]
[406360954,1771798238143,-500.0,0.00016662,2]
[406360955,1771798238152,-500.0,0.00016662,2]
[406360956,1771798238161,-500.0,0.00016662,2]
[406360957,1771798238171,-500.0,0.00016662,2]
[406360958,1771798238181,-500.0,0.00016662,2]
[406360959,1771798238191,-500.0,0.00016662,2]
[406360960,1771798238201,-500.0,0.00016662,2]
[406360961,1771798238211,-500.0,0.00016662,2]
[406360962,1771798238222,-500.0,0.00016662,2]
[406360963,1771798238233,-500.0,0.00016662,2]
[406360964,1771798238243,-500.0,0.00016662,2]
[406360965,1771798238253,-500.0,0.00016662,2]
[406360966,1771798238264,-409.15172622,0.00016662,2]
[406360967,1771798238274,-500.0,0.00016663,2]
[406360968,1771798238284,-151.0,0.00016753,2]
[406360969,1771798238294,-151.0,0.00016753,2]
[406360970,1771798238304,-151.0,0.00016753,2]
[406360971,1771798238313,-151.0,0.00016753,2]
[406360973,1771798238323,-151.0,0.00016753,2]
[406360974,1771798238333,-151.0,0.00016753,2]
[406360975,1771798238342,-151.0,0.00016753,2]
[406360976,1771798238352,-151.0,0.00016753,2]
[406360977,1771798238362,-151.0,0.00016753,2]
[406360978,1771798238597,-151.0,0.00016753,2]
[406360979,1771798238607,-151.0,0.00016753,2]
[406360980,1771798238617,-151.0,0.00016753,2]
[406360981,1771798238626,-151.0,0.00016753,2]
[406360982,1771798238636,-151.0,0.00016753,2]
[406360983,1771798238646,-151.0,0.00016753,2]
[406360984,1771798238655,-151.0,0.00016753,2]
[406360985,1771798238665,-151.0,0.00016753,2]
[406360986,1771798238673,-150.0,0.00016784,30]
[406360987,1771798238683,-166.66,0.00017102,2]
[406360988,1771798238693,-500.0,0.00017102,2]
[406360989,1771798238702,-166.66,0.00017462,2]
[406360990,1771798238712,-1000.0,0.00017599,2]
[406360991,1771798238721,-10000.0,0.00017599,2]
[406360992,1771798238731,-166.66,0.00017822,2]
[406360993,1771798238741,-250.0,0.00017855,2]
[406360994,1771798238750,-250.0,0.00017855,2]
[406360995,1771798238760,-500.0,0.00017899,2]
[406360996,1771798238769,-500.0,0.00017899,2]
[406360997,1771798238779,-500.0,0.00017899,2]
[406360998,1771798238788,-500.0,0.00017899,2]
[406360999,1771798238798,-500.0,0.00017899,2]
[406361000,1771798238808,-500.0,0.00017899,2]
[406361001,1771798238818,-500.0,0.00017899,2]
[406361002,1771798238827,-500.0,0.00017899,2]
[406361003,1771798238837,-500.0,0.00017899,2]
[406361004,1771798238848,-500.0,0.00017899,2]
[406361005,1771798238859,-500.0,0.00017899,2]
[406361006,1771798238869,-500.0,0.00017899,2]
[406361007,1771798238879,-500.0,0.00017899,2]
[406361008,1771798238888,-500.0,0.00017899,2]
[406361009,1771798238898,-525.13346204,0.00017899,2]
[406361010,1771798238908,-500.0,0.00017899,2]
[406361011,1771798238924,-351.64176428,0.00017899,2]
[406361012,1771798238934,-500.0,0.00017899,2]
[406361013,1771798238944,-500.0,0.00017899,2]
[406361014,1771798238954,-500.0,0.00017899,2]
[406361015,1771798238964,-500.0,0.00017899,2]
[406361016,1771798238974,-500.0,0.00017899,2]
[406361017,1771798238983,-500.0,0.00017899,2]
[406361018,1771798238993,-500.0,0.00017899,2]
[406361019,1771798239004,-500.0,0.00017899,2]
[406361020,1771798239013,-500.0,0.00017899,2]
[406361021,1771798239023,-500.0,0.00017899,2]
[406361022,1771798239032,-500.0,0.00017899,2]
[406361023,1771798239041,-500.0,0.00017899,2]
[406361024,1771798239051,-500.0,0.00017899,2]
[406361025,1771798239060,-500.0,0.00017899,2]
[406361026,1771798239070,-500.0,0.00017899,2]
[406361027,1771798239079,-500.0,0.00017899,2]
[406361028,1771798239088,-500.0,0.00017899,2]
[406361029,1771798239097,-500.0,0.00017899,2]
[406361030,1771798239107,-500.0,0.00017899,2]
[406361031,1771798239116,-500.0,0.00017899,2]
[406361032,1771798239126,-500.0,0.00017899,2]
[406361033,1771798239135,-500.0,0.00017899,2]
[406361034,1771798239144,-500.0,0.00017899,2]
[406361035,1771798239154,-530.92405592,0.00017899,2]
[406361036,1771798239163,-500.0,0.00017899,2]
[406361037,1771798239172,-500.0,0.00017899,2]
[406361038,1771798239182,-500.0,0.00017899,2]
[406361039,1771798239191,-500.0,0.00017996,2]
[406361040,1771798239201,-500.0,0.00017996,2]
[406361041,1771798239210,-500.0,0.00017996,2]
[406361042,1771798239220,-500.0,0.00017999,2]
[406361043,1771798239230,-500.0,0.00017999,2]
[406361044,1771798239239,-500.0,0.00017999,2]
[406361045,1771798239249,-500.0,0.00017999,2]
[406361046,1771798239259,-500.0,0.00017999,2]
[406361047,1771798239269,-500.0,0.00017999,2]
[406361048,1771798239279,-500.0,0.00017999,2]
[406361049,1771798239288,-500.0,0.00017999,2]
[406361050,1771798239298,-500.0,0.00017999,2]
[406361051,1771798239307,-500.0,0.00017999,2]
[406361052,1771798239316,-500.0,0.00017999,2]
[406361053,1771798239326,-500.0,0.00017999,2]
[406361054,1771798239335,-500.0,0.00017999,2]
[406361055,1771798239346,-500.0,0.00017999,2]
[406361056,1771798239355,-500.0,0.00017999,2]
[406361057,1771798239365,-500.0,0.00017999,2]
[406361058,1771798239375,-500.0,0.00017999,2]
[406361059,1771798239386,-500.0,0.00017999,2]
[406361060,1771798239395,-500.0,0.00017999,2]
[406361061,1771798239404,-500.0,0.00017999,2]
[406361062,1771798239414,-500.0,0.00017999,2]
[406361063,1771798239424,-500.0,0.00017999,2]
[406361064,1771798239434,-420.0,0.00018087,2]
[406361065,1771798239443,-166.66,0.00018182,2]
[406361066,1771798239453,-173.78509278,0.00018312,2]
[406361067,1771798239463,-1500.0,0.00018489,2]
[406361068,1771798239472,-9999.99,0.00018533,2]
[406361069,1771798239482,-150.99,0.00018533,2]
[406361070,1771798239491,-3485.81,0.00018533,2]
[406361071,1771798239500,-999.99,0.00018533,2]
[406361072,1771798239510,-508.67,0.00018533,2]
[406361073,1771798239519,-150.99,0.00018533,2]
[406361074,1771798239528,-9999.99,0.00018533,2]
[406361075,1771798239538,-166.66,0.00018542,2]
[406361076,1771798239548,-166.66,0.00018902,2]
[406361077,1771798239557,-200.0,0.00019082,2]
[406361078,1771798239566,-587.0,0.00019764,2]
[406361079,1771798239575,-500.0,0.00020057,2]
[406361080,1771798239585,-500.0,0.00020057,2]
[406361081,1771798239595,-500.0,0.00020057,2]
[406361082,1771798239605,-588.38066346,0.00020444,2]
[406361083,1771798239615,-250.0,0.00021448,2]
[406361084,1771798239624,-823.0,0.00021597,2]
[406361085,1771798239633,-5000.0,0.00021918,2]
[406361086,1771798239643,-160.0,0.00023,2]
[406361087,1771798239652,-1152.0,0.00023599,2]
[406361088,1771798239661,-150.0,0.00024658,2]
[406361089,1771798239671,-1613.0,0.00025787,2]
[406361090,1771798239680,-150.0,0.0002589,2]
[406361091,1771798239689,-1880.43,0.00026309,2]
[406361092,1771798239698,-3240.0,0.00026866,2]
[406361093,1771798239707,-150.0,0.00027185,2]
[406361094,1771798239716,-500.0,0.00027215,2]
[406361095,1771798239725,-151.35,0.0002736,30]
[406361096,1771798239734,-1000.0,0.00027397,20]
[406361097,1771798239744,-711.16,0.00027481,2]
[406361098,1771798239754,-200.0,0.00028077,2]
[406361099,1771798239763,-1794.0,0.00028178,2]
[406361100,1771798239773,-150.0,0.00028544,2]
[406361101,1771798239782,-150.0,0.00029971,2]
[406361102,1771798239791,-500.0,0.00030173,120]
[406361103,1771798239801,-1000.0,0.00030363,7]
[406361104,1771798239810,-618.0,0.00030887,2]
[406361105,1771798239819,-1339.839,0.00030887,2]
[406361106,1771798239828,-1276.0,0.00030887,2]
[406361107,1771798239837,-5977.0,0.00030887,2]
[406361108,1771798239851,-413.0,0.00030887,2]
[406361109,1771798239860,-500.0,0.00030993,2]
[406361110,1771798239870,-500.0,0.00030993,8]
[406361111,1771798239879,-150.0,0.0003147,2]
[406361112,1771798239888,-176.3781679,0.00031999,2]
[406361113,1771798239899,-1204.72,0.00032232,2]
[406361115,1771798239908,-150.0,0.00033043,2]
[406361116,1771798239917,-500.0,0.00033161,120]
[406361117,1771798239926,-618.0,0.00033887,2]
[406361118,1771798239936,-1339.0,0.00033887,2]
[406361119,1771798239946,-5977.0,0.00033887,2]
[406361120,1771798239955,-413.0,0.00033887,2]
[406361121,1771798239965,-2000.0,0.000342,2]
[406361122,1771798239974,-150.0,0.00034696,2]
[406361123,1771798239985,-2000.0,0.000351,2]
[406361124,1771798239995,-1000.0,0.00035424,2]
[406361125,1771798240007,-1000.0,0.00035424,2]
[406361126,1771798240019,-1000.0,0.00035424,2]
[406361127,1771798240028,-1000.0,0.00035424,2]
[406361128,1771798240038,-1000.0,0.00035424,2]
[406361129,1771798240048,-967.45615584,0.00035616,120]
[406361130,1771798240058,-500.0,0.0003615,120]
[406361131,1771798240067,-150.0,0.0003643,2]
[406361132,1771798240076,-1339.0,0.00036887,2]
[406361133,1771798240086,-5971.0,0.00036887,2]
[406361134,1771798240095,-413.0,0.00036887,2]
[406361135,1771798240104,-5531.0,0.00037,5]
[406361136,1771798240114,-151.35,0.00037145,30]
[406361137,1771798240124,-852.0,0.000372,2]
[406361138,1771798240135,-429.0,0.000372,2]
[406361139,1771798240145,-309.0,0.000372,2]
[406361140,1771798240155,-2000.0,0.000379,2]
[406361141,1771798240164,-6040.39,0.00038,60]
[406361142,1771798240173,-500.0,0.00038039,120]
[406361143,1771798240183,-558.95850289,0.00038082,30]
[406361144,1771798240192,-500.0,0.00038099,8]
[406361145,1771798240201,-500.0,0.00038099,8]
[406361146,1771798240211,-500.0,0.00038099,8]
[406361147,1771798240220,-500.0,0.00038099,8]
[406361148,1771798240229,-500.0,0.00038099,2]
[406361149,1771798240239,-500.0,0.00038099,8]
[406361150,1771798240248,-500.0,0.00038099,15]
[406361151,1771798240258,-223.41584787,0.00038099,15]
[406361152,1771798240268,-500.0,0.00038099,7]
[406361153,1771798240277,-500.0,0.00038099,15]
[406361154,1771798240287,-500.0,0.00038099,15]
[406361155,1771798240296,-404.38214481,0.00038099,15]
[406361156,1771798240306,-500.0,0.00038099,7]
[406361157,1771798240316,-263.7555946,0.00038099,15]
[406361158,1771798240325,-500.0,0.00038099,15]
[406361159,1771798240335,-529.17907104,0.00038099,7]
[406361160,1771798240344,-500.0,0.00038099,15]
[406361161,1771798240353,-500.0,0.00038099,15]
[406361162,1771798240364,-500.0,0.00038099,15]
[406361163,1771798240374,-500.0,0.00038099,15]
[406361164,1771798240383,-150.68132036,0.00038099,15]
[406361165,1771798240393,-500.0,0.00038099,15]
[406361166,1771798240403,-7275.0,0.000381,5]
[406361167,1771798240412,-352794.09481982,0.000381,33]
[406361168,1771798240422,-150.0,0.00038252,2]
[406361169,1771798240432,-1056.52,0.00038387,2]
[406361170,1771798240442,-13000.0,0.0003866,2]
[406361171,1771798240452,-2000.0,0.000388,2]
[406361172,1771798240461,-2241.0015,0.00038888,30]
[406361173,1771798240471,-6814.1168361,0.00039031,14]
[406361174,1771798240480,-1343.471,0.00039674,55]
[406361175,1771798240489,-276.886087,0.00039928,120]
[406361176,1771798240499,-9881.92,0.0004,120]
[406361177,1771798240509,-9999.99,0.0004,120]
[406361178,1771798240518,-10000.0,0.0004,120]
[406361179,1771798240527,-150.0,0.00040165,2]
[406361180,1771798240537,-150.0,0.000404,30]
[406361181,1771798240546,-306.05328416,0.00040861,2]
[406361182,1771798240556,-300.0,0.00040861,2]
[406361183,1771798240566,-306.05328416,0.00040898,2]
[406361184,1771798240575,-300.0,0.00040898,2]
[406361185,1771798240585,-500.0,0.00040949,2]
[406361186,1771798240594,-500.0,0.00040949,8]
[406361187,1771798240603,-90371.0,0.0004095,60]
[406361188,1771798240613,-199.84022769,0.00040999,8]
[406361189,1771798240623,-500.0,0.00040999,8]
[406361190,1771798240632,-10000.0,0.00041,120]
[406361191,1771798240641,-2014.60439415,0.00041096,10]
[406361192,1771798240651,-169.289495,0.00041096,120]
[406361193,1771798240660,-193.55,0.000411,14]
[406361194,1771798240670,-200.0,0.00041437,8]
[406361196,1771798240679,-200.0,0.00041437,8]
[406361197,1771798240688,-200.0,0.00041437,8]
[406361199,1771798240697,-200.0,0.00041437,8]
[406361201,1771798240706,-200.0,0.00041437,8]
[406361203,1771798240715,-200.0,0.00041437,8]
[406361205,1771798240724,-200.0,0.00041437,8]
[406361207,1771798240733,-200.0,0.00041437,8]
[406361209,1771798240742,-168.0,0.00041533,2]
[406361211,1771798240751,-168.0,0.00041577,2]
[406361213,1771798240761,-2000.0,0.000416,2]
[406361215,1771798240772,-500.0,0.000416,7]
[406361217,1771798240781,-500.0,0.000416,7]
[406361219,1771798240790,-500.0,0.000416,7]
[406361221,1771798240799,-500.0,0.000416,7]
[406361223,1771798240808,-500.0,0.000416,7]
[406361225,1771798240817,-372.93950921,0.000416,7]
[406361226,1771798240826,-4455.99,0.0004179,2]
[406361228,1771798240835,-168.0,0.00041877,2]
[406361230,1771798240845,-10000.0,0.00042,120]
[406361232,1771798240857,-150.0,0.00042173,120]
[406361234,1771798240866,-14165.0,0.00042266,2]
[406361236,1771798240875,-90371.0,0.000423,60]
[406361237,1771798240884,-2000.0,0.000425,2]
[406361239,1771798240895,-200.0,0.0004255,120]
[406361241,1771798240903,-152.59,0.00042688,120]
[406361243,1771798240913,-5000.0,0.0004275,9]
[406361245,1771798240923,-6291.90397855,0.0004295,10]
[406361246,1771798240931,-193.55,0.000434,14]
[406361248,1771798240940,-282.59,0.00043452,120]
[406361250,1771798240950,-500.0,0.00043649,2]
[406361252,1771798240959,-500.0,0.00043649,120]
[406361254,1771798240968,-90371.0,0.0004365,60]
[406361256,1771798240977,-303.81833795,0.000438,60]
[406361258,1771798240986,-500.0,0.000438,60]
[406361259,1771798240995,-30530.52040371,0.00044,2]
[406361261,1771798241004,-1707.82172191,0.00044081,2]
[406361263,1771798241014,-200.0,0.0004415,120]
[406361265,1771798241023,-150.0,0.000442,30]
[406361267,1771798241032,-150.0,0.00044281,120]
[406361269,1771798241042,-168.0,0.000443,2]
[406361271,1771798241051,-506.2571619,0.00044383,120]
[406361273,1771798241061,-500.0,0.00044383,120]
[406361275,1771798241069,-500.0,0.00044383,120]
[406361277,1771798241079,-500.0,0.00044383,120]
[406361278,1771798241088,-500.0,0.00044383,120]
[406361280,1771798241097,-500.0,0.00044383,120]
[406361282,1771798241106,-500.0,0.00044383,120]
[406361284,1771798241116,-500.0,0.00044383,120]
[406361286,1771798241125,-500.0,0.00044383,120]
[406361288,1771798241135,-500.0,0.00044383,120]
[406361290,1771798241144,-500.0,0.00044383,120]
[406361292,1771798241153,-500.0,0.00044383,120]
[406361294,1771798241162,-500.0,0.00044383,120]
[406361295,1771798241171,-500.0,0.00044383,120]
[406361297,1771798241180,-500.0,0.00044383,120]
[406361299,1771798241189,-500.0,0.00044383,120]
[406361301,1771798241198,-399.0374907,0.00044383,120]
[406361303,1771798241207,-550.41402608,0.00044383,120]
[406361305,1771798241217,-243.5358712,0.00044383,120]
[406361306,1771798241226,-500.0,0.00044383,120]
[406361308,1771798241236,-500.000001,0.00044383,120]
[406361310,1771798241245,-150.0,0.000444,120]
[406361312,1771798241254,-150.0,0.000444,120]
[406361314,1771798241263,-150.0,0.000444,120]
[406361316,1771798241272,-150.0,0.000444,120]
[406361318,1771798241282,-7306.85574963,0.00044499,10]
[406361320,1771798241291,-185.21284342,0.00044678,16]
[406361322,1771798241300,-243.63605972,0.00044778,7]
[406361324,1771798241310,-185.21284339,0.00044893,17]
[406361325,1771798241319,-500.0,0.00044896,60]
[406361327,1771798241329,-249.0001,0.000449,7]
[406361329,1771798241338,-745.0,0.00044923,30]
[406361331,1771798241347,-243.63605972,0.00044944,7]
[406361333,1771798241356,-2013.46,0.00044958,2]
[406361334,1771798241366,-200.03451288,0.0004499,7]
[406361335,1771798241376,-171.15,0.00044999,2]
[406361336,1771798241386,-500.0,0.00044999,120]
[406361337,1771798241396,-500.0,0.00044999,120]